bitfinex/quotes_ETHUSD_20240810
["timestamp","ask_amount","ask_price","bid_price","bid_amount"]
[1723280000708,2.274719,2637.7,2637.1,1.96476736]
[1723280002741,1.89561,2637.7,2637.1,1.96476736]
[1723280007558,1.89582,2637.4,2637.1,0.06879736]
[1723280007744,3.59406884,2637.8,2637.1,0.06879736]
[1723280007745,1.8956,2637.7,2637.1,0.06879736]
[1723280007941,1.8956,2637.7,2636.7,4.17527]
[1723280008273,1.8956,2637.7,2636.8,1.166527]
[1723280008443,1.8956,2637.7,2636.8,1.23393662]
[1723280009357,1.89578,2637.5,2636.9,1.89612]
[1723280009746,1.89578,2637.5,2637.0,0.06734155]
[1723280010066,3.79157,2637.5,2637.0,0.06734155]
[1723280010427,1.89602,2637.1,2637.0,0.06734155]
[1723280010660,1.8962,2636.9,2636.6,7.49]
[1723280011033,1.89609,2637.0,2636.6,7.49]
[1723280011862,1.89603,2637.1,2636.6,7.49]
[1723280012247,1.8961,2637.0,2636.6,7.49]
[1723280012948,3.0,2637.2,2636.7,1.8963]
[1723280013149,1.8959,2637.3,2636.8,2.3091]
[1723280013559,1.8959,2637.3,2636.9,0.06737558]
[1723280014980,1.89562,2637.7,2636.9,1.96352558]
[1723280015284,1.89562,2637.7,2637.0,0.42726256]
[1723280015479,1.89562,2637.7,2637.0,0.49460411]
[1723280015841,3.31206884,2637.8,2637.0,0.06734155]
[1723280015842,1.89592,2637.3,2637.0,0.06734155]
[1723280016047,1.89592,2637.3,2636.8,2.3091]
[1723280016242,1.89592,2637.3,2637.1,0.06730752]
[1723280016575,1.89595,2637.2,2636.8,2.3091]
[1723280016777,1.89602,2637.1,2636.8,2.3091]
[1723280019053,1.89597,2637.2,2636.8,2.3091]
[1723280019443,1.89592,2637.3,2636.8,2.3091]
[1723280023763,2.575068,2637.3,2636.8,2.3091]
[1723280023967,4.471008,2637.3,2636.8,2.3091]
[1723280024274,1.89596,2637.2,2636.9,0.06757065]
[1723280027891,4.89581,2637.4,2636.9,0.06757065]
[1723280028048,1.89581,2637.4,2636.9,0.06757065]
[1723280030086,1.89581,2637.4,2636.9,1.96372065]
[1723280030393,3.0,2637.5,2636.9,2.58062871]
[1723280030695,1.8957,2637.6,2636.9,2.58062871]
[1723280030852,1.8957,2637.6,2637.0,2.2714]
[1723280031054,3.79142,2637.6,2637.1,0.06750259]
[1723280031290,4.89574,2637.5,2637.1,0.06750259]
[1723280031467,1.8957,2637.6,2637.1,0.06750259]
[1723280032074,3.0,2637.7,2637.2,2.2714]
[1723280032393,1.89563,2637.7,2637.2,2.3387515]
[1723280032719,1.89566,2637.6,2637.2,2.3387515]
[1723280037607,1.89579,2637.5,2637.2,2.3387515]
[1723280037806,3.02785,2637.4,2637.2,0.0673515]
[1723280038017,3.79174,2637.3,2637.2,0.0673515]
[1723280038211,1.89601,2637.2,2636.8,2.2714]
[1723280038366,1.89587,2637.3,2636.8,2.2714]
[1723280038367,1.132,2636.9,2636.8,2.2714]
[1723280039680,1.89606,2637.1,2636.8,2.2714]
[1723280040299,1.89614,2637.0,2636.8,2.2714]
[1723280041020,1.89606,2637.1,2636.8,2.2714]
[1723280041778,1.89636,2636.7,2636.1,1.89672]
[1723280041978,1.89638,2636.6,2636.2,2.4513]
[1723280042519,1.89638,2636.6,2636.2,2.886102]
[1723280043314,1.89638,2636.6,2636.3,0.0617787]
[1723280046830,1.89652,2636.4,2636.3,0.0617787]
[1723280047117,1.89652,2636.4,2635.9,2.4422]
[1723280047281,3.7931,2636.4,2636.3,0.0617787]
[1723280047484,1.89652,2636.4,2635.9,2.4422]
[1723280047684,1.8967,2636.2,2635.9,2.4422]
[1723280047996,1.89646,2636.5,2635.9,4.33903]
[1723280048190,1.89646,2636.5,2635.9,4.772933]
[1723280048390,1.89646,2636.5,2635.9,4.33903]
[1723280049181,3.79296,2636.5,2635.9,4.33903]
[1723280049518,1.89646,2636.5,2635.9,4.33903]
[1723280050084,3.79297,2636.5,2635.9,4.33903]
[1723280050285,1.89646,2636.5,2635.9,4.33903]
[1723280051621,3.79297,2636.5,2635.9,4.33903]
[1723280051834,1.89646,2636.5,2635.9,4.33903]
[1723280054325,1.89661,2636.3,2635.9,2.4422]
[1723280056991,2.275918,2636.3,2635.9,2.4422]
[1723280057219,1.89671,2636.2,2635.9,2.4422]
[1723280057610,1.89675,2636.1,2635.9,2.4422]
[1723280057942,1.89675,2636.1,2635.6,2.4422]
[1723280058136,1.89675,2636.1,2636.0,0.06219186]
[1723280058434,1.89675,2636.1,2635.6,2.4422]
[1723280058611,1.89675,2636.1,2636.0,0.06219186]
[1723280058812,1.89675,2636.1,2635.6,2.4422]
[1723280059343,3.79355,2636.1,2635.6,2.4422]
[1723280059646,1.89675,2636.1,2635.7,0.06271523]
[1723280059943,1.89685,2636.0,2635.7,0.06271523]
[1723280060248,1.89688,2635.9,2635.7,0.06271523]
[1723280061746,1.134,2635.8,2635.3,4.33946]
[1723280062346,3.03096,2635.8,2635.3,4.33946]
[1723280062844,1.134,2635.8,2635.3,4.33946]
[1723280063046,1.134,2635.8,2635.4,0.433946]
[1723280063242,1.134,2635.8,2635.4,2.331186]
[1723280063451,1.134,2635.6,2635.3,2.4422]
[1723280063646,1.134,2635.4,2635.3,2.4422]
[1723280064342,1.134,2635.4,2635.0,7.49]
[1723280064644,1.134,2635.1,2635.0,7.49]
[1723280064852,1.134,2635.1,2634.7,4.25149]
[1723280065013,1.134,2635.3,2634.9,1.89759]
[1723280065648,1.134,2635.1,2634.7,6.14918]
[1723280066721,1.134,2635.1,2634.8,1.89767]
[1723280066926,1.134,2635.1,2634.7,6.14919]
[1723280067126,1.134,2635.1,2634.7,6.764109]
[1723280068139,1.134,2635.1,2634.7,4.866409]
[1723280068347,1.134,2635.1,2634.7,6.764099]
[1723280068655,1.134,2635.1,2634.8,1.89766]
[1723280068852,1.134,2635.1,2634.9,1.8976]
[1723280069217,1.134,2635.1,2634.9,1.89755]
[1723280069647,1.72855402,2635.3,2635.0,2.4472]
[1723280073259,1.72855402,2635.3,2635.1,0.05951195]
[1723280074580,1.134,2635.3,2635.1,0.05951195]
[1723280076276,1.89738,2635.2,2635.1,0.05951195]
[1723280076450,3.03136,2635.3,2635.1,0.05951195]
[1723280076655,3.524216,2635.3,2634.7,1.89773]
[1723280076834,1.89736,2635.3,2635.2,0.05997717]
[1723280077171,3.03136,2635.3,2635.2,0.05997717]
[1723280077366,3.03136,2635.3,2634.6,2.4472]
[1723280077367,1.89742,2635.2,2634.6,4.34501]
[1723280077676,1.134,2635.0,2634.6,5.718295]
[1723280078339,1.134,2634.8,2634.5,1.89787]
[1723280078533,1.134,2634.8,2634.4,11.83513]
[1723280078745,1.134,2634.8,2634.4,4.34513]
[1723280078954,1.134,2634.8,2634.4,4.969451]
[1723280079444,1.134,2634.8,2634.4,3.071521]
[1723280080484,1.134,2634.8,2634.4,2.4472]
[1723280080485,1.134,2634.6,2634.4,2.4472]
[1723280081039,1.134,2634.6,2634.2,1.89808]
[1723280081845,1.134,2634.4,2634.1,2.4472]
[1723280084152,1.134,2634.4,2633.9,9.9491]
[1723280084353,1.134,2634.4,2633.9,12.118936]
[1723280084876,1.134,2634.4,2633.9,14.017246]
[1723280085577,1.134,2634.4,2633.9,12.118936]
[1723280085790,3.03196,2634.4,2633.9,12.118936]
[1723280086087,1.134,2634.4,2633.9,4.628936]
[1723280086250,1.134,2634.4,2633.9,4.35737]
[1723280086447,3.03196,2634.4,2633.9,2.4591]
[1723280086867,1.134,2634.2,2633.9,2.4591]
[1723280087392,1.134,2634.2,2633.8,1.89834]
[1723280087681,1.134,2634.2,2633.7,2.4591]
[1723280087981,1.134,2634.0,2633.8,0.06099943]
[1723280088183,1.134,2634.0,2633.5,7.49]
[1723280088690,1.134,2634.0,2633.6,0.06106766]
[1723280089977,1.134,2633.8,2633.6,0.06106766]
[1723280092188,1.134,2633.8,2633.4,4.33743]
[1723280092375,1.134,2633.8,2633.7,0.06184477]
[1723280092575,1.134,2633.8,2633.4,4.961055]
[1723280093115,1.134,2633.8,2633.5,0.06191301]
[1723280096619,1.134,2633.8,2633.5,1.96049301]
[1723280096825,1.134,2633.8,2633.5,0.06191301]
[1723280097621,1.134,2633.8,2633.5,1.96052301]
[1723280097790,4.20227,2634.6,2633.8,2.4388]
[1723280097995,1.134,2634.0,2633.8,4.33715]
[1723280098212,1.134,2634.0,2633.9,0.06180251]
[1723280100205,1.134,2634.0,2633.9,1.96012251]
[1723280100420,4.20227,2634.6,2634.0,1.89825]
[1723280100628,1.134,2634.2,2634.0,3.79645]
[1723280100921,1.134,2634.2,2634.1,0.06168237]
[1723280101824,1.134,2634.2,2633.8,6.23552]
[1723280102021,1.134,2634.2,2634.1,0.06168237]
[1723280103320,3.0,2634.5,2634.1,0.06168237]
[1723280103618,1.134,2634.3,2634.2,0.06164826]
[1723280103916,1.134,2634.3,2634.0,1.8982]
[1723280104125,1.134,2634.3,2634.2,0.06160931]
[1723280104532,1.134,2634.3,2634.0,1.8982]
[1723280104743,1.134,2634.3,2634.2,0.06160931]
[1723280105033,1.134,2634.3,2634.1,0.06164341]
[1723280105336,1.134,2634.3,2634.2,0.06160931]
[1723280105900,1.134,2634.3,2633.8,4.96829499]
[1723280106213,1.134,2634.0,2633.8,4.33715]
[1723280106390,1.134,2634.0,2633.9,0.06169215]
[1723280107192,1.134,2634.0,2633.6,1.89851]
[1723280107397,1.134,2633.8,2633.6,1.89851]
[1723280107733,1.134,2633.8,2633.5,2.3009]
[1723280108231,1.134,2633.8,2633.4,9.38863]
[1723280108592,1.134,2633.6,2633.4,7.49]
[1723280108798,1.134,2633.6,2633.2,6.27616]
[1723280109000,1.134,2633.6,2633.2,6.903777]
[1723280109199,1.134,2633.6,2633.3,1.89874]
[1723280109628,1.134,2633.6,2633.2,5.004997]
[1723280110140,1.134,2633.6,2633.3,1.89874]
[1723280110438,1.134,2633.6,2633.2,5.004997]
[1723280110933,1.134,2633.6,2633.3,1.89875]
[1723280111437,1.134,2633.6,2633.2,1.89878]
[1723280111635,3.4931,2633.6,2633.2,1.89878]
[1723280111800,3.4931,2633.6,2633.2,2.278554]
[1723280111801,1.134,2633.6,2633.2,2.278554]
[1723280112337,1.134,2633.6,2633.2,4.177334]
[1723280112530,1.134,2633.6,2633.3,1.8987]
[1723280117942,1.134,2633.6,2633.4,0.06228473]
[1723280118506,1.134,2633.6,2633.2,1.89878]
[1723280118706,1.134,2633.4,2633.2,1.89878]
[1723280118909,1.134,2633.4,2632.9,2.4786]
[1723280118910,1.134,2633.4,2633.3,0.06231885]
[1723280119339,3.4931,2633.5,2633.1,1.89888]
[1723280119563,3.4931,2633.5,2633.0,1.89896]
[1723280119564,3.4931,2633.5,2633.2,1.95922107]
[1723280120240,1.134,2633.5,2633.2,1.95922107]
[1723280120770,1.134,2633.5,2633.2,0.06040107]
[1723280120936,1.134,2633.5,2633.0,3.79787]
[1723280121132,1.134,2633.5,2633.2,1.89878]
[1723280121471,1.134,2633.5,2633.3,0.06054228]
[1723280121845,1.134,2633.5,2633.0,3.79782]
[1723280122041,1.134,2633.5,2633.4,0.06048867]
[1723280122351,1.134,2633.5,2633.4,0.06049516]
[1723280122543,1.134,2633.5,2633.0,1.89891]
[1723280122872,1.134,2633.3,2633.1,0.06059754]
[1723280125942,2.2652,2633.2,2633.1,0.06059754]
[1723280126265,2.2652,2633.2,2632.8,1.89909]
[1723280126468,1.134,2633.1,2632.8,1.89909]
[1723280130167,1.134,2633.1,2632.9,1.89902]
[1723280130377,1.134,2633.1,2632.8,1.89909]
[1723280130980,1.134,2633.1,2632.8,1.89907]
[1723280132333,1.134,2633.1,2632.9,1.89899]
[1723280132979,1.134,2633.1,2633.0,0.05895217]
[1723280133776,1.134,2633.1,2632.8,1.89907]
[1723280134478,1.134,2633.1,2632.9,0.05909023]
[1723280135886,0.59499356,2633.3,2633.2,1.89883]
[1723280136043,1.134,2633.5,2633.3,1.8987]
[1723280136546,1.134,2633.5,2633.4,0.05891958]
[1723280137381,3.0,2633.8,2633.4,0.05891958]
[1723280137556,1.134,2633.6,2633.4,0.05891958]
[1723280138467,3.0,2633.8,2633.4,1.95758958]
[1723280138675,1.134,2633.6,2633.4,4.27808958]
[1723280138985,1.134,2633.6,2633.4,1.95758958]
[1723280139947,1.134,2633.6,2633.4,1.95755958]
[1723280140146,1.134,2633.6,2633.4,2.57524454]
[1723280140679,1.134,2633.8,2633.7,1.89842]
[1723280140984,1.134,2633.9,2633.7,1.95714631]
[1723280142390,0.59489089,2634.2,2633.7,1.95714631]
[1723280142391,0.59489089,2634.2,2633.9,1.89826]
[1723280142595,1.134,2634.2,2633.9,1.89826]
[1723280142969,1.134,2634.2,2634.0,0.05848759]
[1723280144484,1.134,2634.2,2634.0,1.95672759]
[1723280146369,1.134,2634.2,2634.0,0.05848759]
[1723280147158,3.623,2634.2,2634.0,0.05848759]
[1723280147384,4.1751,2634.2,2633.7,1.89841]
[1723280147596,1.134,2633.9,2633.5,1.89855]
[1723280147795,1.134,2633.9,2633.5,2.322475]
[1723280147984,1.134,2633.9,2633.6,0.05855261]
[1723280148402,1.134,2633.7,2633.6,0.05855261]
[1723280148594,1.4963,2633.7,2633.3,1.89872]
[1723280148765,1.134,2633.5,2633.2,1.89882]
[1723280149601,1.134,2633.5,2633.1,4.23954]
[1723280149765,1.134,2633.5,2633.1,1.89884]
[1723280150105,1.134,2633.5,2633.1,3.79769]
[1723280150398,1.134,2633.5,2633.1,1.89884]
[1723280152274,1.134,2633.5,2633.1,3.79769]
[1723280155411,1.134,2633.5,2633.1,1.89884]
[1723280156104,1.134,2633.5,2633.0,1.89896]
[1723280157200,1.134,2633.5,2633.1,1.89889]
[1723280158822,1.134,2633.5,2633.1,1.89885]
[1723280160927,1.134,2633.5,2633.2,1.89877]
[1723280162909,2.489,2633.8,2633.4,1.89865]
[1723280163243,3.623,2633.8,2633.3,0.05866145]
[1723280163415,3.623,2633.8,2633.5,0.0585932]
[1723280163613,3.623,2633.8,2633.2,1.89878]
[1723280163918,3.623,2633.8,2633.6,0.05855909]
[1723280164124,3.623,2633.8,2633.4,1.89863]
[1723280164315,3.623,2633.8,2633.7,0.05852497]
[1723280164525,3.623,2633.8,2633.4,1.89863]
[1723280164729,3.623,2633.8,2633.7,0.05852497]
[1723280164937,3.623,2633.8,2633.4,1.89863]
[1723280165237,5.52139,2633.8,2633.3,1.89875]
[1723280165530,5.52139,2633.8,2633.5,0.0585932]
[1723280165737,1.898,2634.4,2633.7,1.89842]
[1723280165937,1.134,2634.1,2633.9,1.89827]
[1723280166146,1.134,2634.3,2633.9,1.89827]
[1723280166329,1.134,2634.3,2634.1,1.89813]
[1723280166642,1.134,2634.3,2634.2,1.95642196]
[1723280166815,1.134,2634.3,2634.2,0.05832196]
[1723280168347,2.4118,2634.8,2634.4,1.8979]
[1723280168513,1.134,2634.8,2634.4,1.8979]
[1723280168716,1.134,2634.8,2634.5,0.05786258]
[1723280169024,1.134,2634.8,2634.6,1.89781]
[1723280169212,1.134,2634.8,2634.6,1.95563849]
[1723280169411,1.134,2634.8,2634.6,0.05782849]
[1723280169862,1.134,2634.8,2634.6,1.95564849]
[1723280171546,1.134,2634.8,2634.6,0.05782849]
[1723280171959,1.134,2634.8,2634.2,4.20586]
[1723280172177,1.89773,2634.8,2634.7,0.05689208]
[1723280172329,5.44353,2634.8,2634.0,4.622647]
[1723280172671,5.44353,2634.8,2634.1,2.3603947]
[1723280172672,1.134,2634.6,2634.1,2.3603947]
[1723280172867,1.134,2634.6,2634.2,1.8981]
[1723280176449,1.134,2634.6,2634.2,3.7962]
[1723280176655,1.134,2634.6,2634.2,1.8981]
[1723280176968,1.134,2634.6,2634.2,2.59639917]
[1723280177555,1.134,2634.6,2634.2,0.69829917]
[1723280178067,3.03182,2634.6,2634.3,0.05702845]
[1723280178284,3.03182,2634.6,2634.1,0.4622647]
[1723280178436,3.03182,2634.6,2634.4,0.05699436]
[1723280178637,3.03182,2634.6,2634.0,4.622607]
[1723280178967,3.5458,2634.4,2633.8,1.89834]
[1723280179190,3.5458,2634.4,2633.9,1.89831]
[1723280179464,5.44378,2634.4,2633.8,1.89834]
[1723280180248,3.5458,2634.4,2633.8,3.79669]
[1723280180451,3.5458,2634.4,2633.8,5.156139]
[1723280180697,2.4118,2634.4,2634.0,1.89821]
[1723280180987,1.134,2634.7,2634.2,1.89805]
[1723280181196,1.134,2634.7,2634.3,0.420585]
[1723280181354,1.134,2634.7,2634.2,1.89805]
[1723280181554,1.134,2634.7,2634.2,3.79611]
[1723280182082,1.134,2634.5,2634.0,1.8982]
[1723280182250,3.4921,2634.5,2634.0,1.8982]
[1723280183269,3.4921,2634.5,2634.0,2.4522449]
[1723280183651,1.134,2634.5,2634.0,2.4522449]
[1723280184166,1.134,2634.5,2634.0,4.3504449]
[1723280184581,1.134,2634.5,2634.1,1.89816]
[1723280189410,1.134,2634.5,2634.0,2.4522449]
[1723280190841,1.134,2634.5,2634.1,1.89813]
[1723280191364,1.134,2634.5,2634.0,4.3504549]
[1723280191564,1.134,2634.5,2634.0,2.4522449]
[1723280193176,1.134,2634.5,2634.1,0.05720049]
[1723280193585,1.89796,2634.4,2634.1,0.05720049]
[1723280193805,2.43,2634.3,2634.1,0.05720049]
[1723280193993,3.564,2634.3,2633.8,5.156139]
[1723280194308,3.564,2634.3,2633.8,1.359449]
[1723280194479,1.134,2634.1,2633.9,0.05737904]
[1723280195474,3.564,2634.3,2633.9,0.05737904]
[1723280196497,1.134,2634.3,2633.9,1.95566904]
[1723280196698,1.134,2634.3,2633.9,2.57893994]
[1723280197502,1.134,2634.3,2633.9,0.05737904]
[1723280197900,1.134,2634.3,2633.6,11.7672]
[1723280198098,1.134,2634.3,2634.0,0.05734493]
[1723280198461,1.134,2634.3,2633.8,1.89839]
[1723280198627,1.134,2634.3,2634.1,0.05731082]
[1723280198952,1.134,2634.3,2633.8,1.89839]
[1723280199117,1.134,2634.3,2633.8,3.264949]
[1723280199448,1.134,2634.3,2633.9,0.05737904]
[1723280200942,1.134,2634.3,2633.9,1.95567904]
[1723280205576,2.3104,2634.2,2633.9,0.05737904]
[1723280205729,1.134,2634.1,2633.9,0.05737904]
[1723280206071,1.134,2634.1,2633.5,1.89859]
[1723280206277,1.134,2634.1,2633.4,4.16064]
[1723280206278,4.742871,2634.1,2634.0,0.05734493]
[1723280206572,4.20862,2634.1,2633.4,1.89864]
[1723280206777,1.134,2633.8,2633.4,3.79728]
[1723280206975,1.134,2633.8,2633.4,1.89864]
[1723280207178,1.134,2633.8,2633.4,4.403223]
[1723280207685,1.134,2633.8,2633.4,2.504583]
[1723280207851,2.4979,2633.7,2633.4,0.605943]
[1723280208178,2.4979,2633.7,2633.5,0.05771021]
[1723280208547,1.134,2633.6,2633.5,0.05771021]
[1723280208750,1.134,2633.6,2633.2,1.89882]
[1723280208951,1.134,2633.6,2633.5,0.05771021]
[1723280209432,1.134,2633.6,2633.2,1.89882]
[1723280209644,1.134,2633.6,2633.5,0.05771021]
[1723280209863,1.134,2633.6,2633.2,1.89882]
[1723280210068,1.134,2633.6,2633.5,0.05771021]
[1723280210269,1.134,2633.6,2633.2,1.89882]
[1723280210469,1.134,2633.6,2633.5,0.05771021]
[1723280210636,1.134,2633.6,2633.2,1.89882]
[1723280210837,1.134,2633.6,2633.5,0.05771021]
[1723280211038,1.134,2633.6,2633.2,1.89882]
[1723280211360,1.134,2633.6,2633.5,0.05771021]
[1723280211569,1.134,2633.6,2633.2,1.89882]
[1723280211862,1.134,2633.6,2633.3,0.05777845]
[1723280212171,1.134,2633.6,2633.2,1.89882]
[1723280212471,1.134,2633.6,2633.4,0.05774433]
[1723280212662,1.134,2633.6,2633.3,0.05777845]
[1723280212836,1.134,2633.6,2633.2,1.89878]
[1723280213522,1.134,2633.6,2633.3,0.05777845]
[1723280214025,1.134,2633.6,2633.2,1.89878]
[1723280214224,1.134,2633.6,2633.4,0.05774433]
[1723280214801,1.134,2633.6,2633.2,1.89878]
[1723280214990,1.134,2633.6,2633.5,0.05771021]
[1723280215191,1.134,2633.6,2633.2,1.89878]
[1723280215391,1.134,2633.6,2633.5,0.05771021]
[1723280216038,1.134,2633.6,2633.2,1.89878]
[1723280216239,1.134,2633.6,2633.5,0.05771021]
[1723280216528,1.134,2633.6,2633.2,1.89878]
[1723280216728,1.134,2633.6,2633.5,0.05771021]
[1723280217031,1.134,2633.6,2633.2,1.89878]
[1723280217262,1.134,2633.6,2633.5,0.05771021]
[1723280217546,1.134,2633.6,2633.2,1.89878]
[1723280217712,1.134,2633.6,2633.5,0.05771021]
[1723280217895,1.134,2633.6,2633.2,1.89878]
[1723280218099,1.134,2633.6,2633.5,0.05771021]
[1723280218337,1.134,2633.6,2633.2,1.89878]
[1723280218538,1.134,2633.6,2633.5,0.05771021]
[1723280218739,1.134,2633.6,2633.2,1.89878]
[1723280219035,1.134,2633.6,2633.5,0.05771021]
[1723280219248,2.4979,2633.9,2633.4,1.89863]
[1723280219399,3.6319,2633.9,2633.4,1.89863]
[1723280219596,1.134,2633.9,2633.5,0.05812571]
[1723280220102,1.134,2633.9,2633.5,0.25380128]
[1723280220540,1.134,2633.9,2633.6,1.89853]
[1723280221042,1.134,2633.9,2633.7,0.05805747]
[1723280224649,1.134,2633.9,2633.7,1.95649747]
[1723280225509,1.134,2633.9,2633.7,0.05805747]
[1723280225710,1.134,2633.9,2633.5,1.89856]
[1723280225907,1.134,2633.9,2633.8,0.05648064]
[1723280226435,1.134,2633.9,2633.5,1.89856]
[1723280226607,1.134,2633.9,2633.8,0.05648064]
[1723280226805,1.134,2633.9,2633.5,1.89856]
[1723280227128,1.134,2633.9,2633.6,0.05654887]
[1723280227509,1.134,2633.9,2633.6,1.95503887]
[1723280227727,1.134,2633.9,2633.6,3.85352887]
[1723280228008,1.134,2633.9,2633.6,1.95502887]
[1723280230646,1.134,2633.9,2633.6,0.05654887]
[1723280233849,3.5725,2633.7,2633.6,0.05654887]
[1723280234051,3.5725,2633.7,2633.2,1.89877]
[1723280234760,3.5725,2633.7,2633.3,0.0566824]
[1723280235254,3.5725,2633.7,2633.2,1.89877]
[1723280235568,3.5725,2633.7,2633.4,0.05664827]
[1723280235736,3.5725,2633.7,2633.3,0.0566824]
[1723280235958,3.5725,2633.7,2633.2,1.89877]
[1723280236163,3.5725,2633.7,2633.4,0.05664827]
[1723280236459,3.5725,2633.7,2633.3,0.0566824]
[1723280236635,3.5725,2633.7,2633.5,0.05661415]
[1723280237165,3.5725,2633.7,2633.6,0.05658003]
[1723280237533,3.5725,2633.7,2633.2,1.89877]
[1723280237734,3.5725,2633.7,2633.6,0.05658003]
[1723280237934,3.5725,2633.7,2633.2,1.89877]
[1723280238117,3.5725,2633.7,2633.6,0.05658003]
[1723280238329,3.5725,2633.7,2633.2,1.89877]
[1723280238561,3.5725,2633.7,2633.6,0.05653281]
[1723280238851,3.5725,2633.7,2633.2,1.89877]
[1723280239063,3.5725,2633.7,2633.6,0.05653281]
[1723280239569,2.4385,2633.7,2633.6,0.05653281]
[1723280239754,2.4385,2633.7,2633.2,1.89877]
[1723280239938,2.4385,2633.7,2633.6,0.05653281]
[1723280240116,2.4385,2633.7,2633.2,1.89877]
[1723280240322,2.4385,2633.7,2633.6,0.05653281]
[1723280240518,2.4385,2633.7,2633.2,1.89877]
[1723280240747,2.4385,2633.7,2633.6,0.05653281]
[1723280240952,2.4385,2633.7,2633.3,1.89875]
[1723280241163,2.4385,2633.7,2633.6,0.05653281]
[1723280241333,2.4385,2633.7,2633.3,1.89875]
[1723280241662,2.4385,2633.7,2633.6,0.05653281]
[1723280241857,2.4385,2633.7,2633.3,1.89875]
[1723280242069,2.4385,2633.7,2633.4,0.05660105]
[1723280242266,2.4385,2633.7,2633.3,2.278502]
[1723280242624,2.4385,2633.7,2633.5,0.05656693]
[1723280242845,2.4385,2633.7,2633.6,0.05653281]
[1723280243034,2.4385,2633.7,2633.3,1.89875]
[1723280243348,2.4385,2633.7,2633.4,0.05660105]
[1723280244922,2.4385,2633.7,2633.2,3.79754]
[1723280245124,2.4385,2633.7,2633.5,0.05668379]
[1723280245324,2.4385,2633.7,2633.2,3.79754]
[1723280245558,2.4385,2633.7,2633.6,0.05664967]
[1723280245834,2.872187,2633.7,2633.2,1.89877]
[1723280246158,2.4385,2633.7,2633.2,1.89877]
[1723280246356,2.4385,2633.7,2633.3,0.05675204]
[1723280246733,2.4385,2633.7,2633.2,1.89877]
[1723280246942,2.4385,2633.7,2633.4,0.05671792]
[1723280247264,2.4385,2633.7,2633.2,1.89877]
[1723280247459,2.4385,2633.7,2633.5,0.05668379]
[1723280247629,2.4385,2633.7,2633.3,1.89874]
[1723280247962,2.4385,2633.7,2633.4,0.05671792]
[1723280249173,2.4385,2633.7,2633.1,3.067835]
[1723280249174,4.33699,2633.7,2633.1,3.067835]
[1723280249458,4.33699,2633.7,2633.5,0.05668379]
[1723280249659,4.960526,2633.7,2633.2,1.89881]
[1723280249867,4.33699,2633.7,2633.2,1.95559617]
[1723280250163,4.33699,2633.7,2633.2,1.89881]
[1723280250359,4.33699,2633.7,2633.3,0.05675204]
[1723280250864,4.33699,2633.7,2633.2,1.89881]
[1723280251024,4.33699,2633.7,2633.4,0.05671792]
[1723280251329,4.33699,2633.7,2633.2,1.89881]
[1723280251531,4.33699,2633.7,2633.5,0.05668379]
[1723280251730,4.33699,2633.7,2633.2,1.89881]
[1723280251930,4.33699,2633.7,2633.6,0.05664967]
[1723280252232,4.960526,2633.7,2633.2,1.89881]
[1723280252427,4.33699,2633.7,2633.6,0.05664967]
[1723280252970,4.33699,2633.7,2633.2,1.89881]
[1723280253131,4.33699,2633.7,2633.6,0.05664967]
[1723280253328,4.33699,2633.7,2633.2,1.89881]
[1723280253663,4.33699,2633.7,2633.6,0.05664967]
[1723280253858,4.960526,2633.7,2633.2,1.89881]
[1723280254158,4.33699,2633.7,2633.6,0.05664967]
[1723280254465,4.33699,2633.7,2633.2,1.89881]
[1723280254768,4.33699,2633.7,2633.6,0.05664967]
[1723280255074,4.33699,2633.7,2633.2,1.89881]
[1723280255275,4.33699,2633.7,2633.6,0.05664967]
[1723280255450,4.960526,2633.7,2633.2,1.89881]
[1723280255651,4.33699,2633.7,2633.3,0.05675204]
[1723280255851,4.33699,2633.7,2633.2,1.89881]
[1723280256164,4.33699,2633.7,2633.3,0.05675204]
[1723280256670,4.33699,2633.7,2633.2,1.89881]
[1723280256878,4.33699,2633.7,2633.4,0.05671792]
[1723280257084,4.33699,2633.7,2633.2,1.89881]
[1723280257247,4.33699,2633.7,2633.2,2.088691]
[1723280257751,4.33699,2633.7,2633.3,0.05675204]
[1723280258049,4.33699,2633.7,2633.2,2.088691]
[1723280258388,4.33699,2633.7,2633.3,0.05675204]
[1723280258755,4.33699,2633.7,2633.2,1.89881]
[1723280258966,4.33699,2633.7,2633.4,0.05671792]
[1723280259164,4.33699,2633.7,2633.2,1.89881]
[1723280259371,2.2795,2633.6,2633.5,0.05668379]
[1723280259683,2.2795,2633.6,2633.2,1.89881]
[1723280259892,2.2795,2633.6,2633.5,0.05678123]
[1723280260174,2.2795,2633.6,2632.9,9.389]
[1723280260175,2.2795,2633.6,2633.0,1.89892]
[1723280260390,2.2795,2633.2,2632.7,1.89913]
[1723280261078,2.2795,2633.2,2632.8,1.89911]
[1723280261457,2.2795,2633.2,2632.8,1.95613013]
[1723280262276,2.2795,2633.2,2632.8,0.05702013]
[1723280262583,2.2795,2633.2,2632.7,1.89917]
[1723280262778,2.2795,2633.2,2632.9,0.05572772]
[1723280263080,2.2795,2633.2,2632.8,0.05576186]
[1723280263265,2.2795,2633.2,2633.0,0.05569359]
[1723280263579,2.2795,2633.2,2632.7,1.89917]